Workbook

Sheet Cover Page
A1: Repackaging Release Model for 1,2-Dichloroethane
A3: CASRN 107-06-2

Sheet ReadMe
B2: Instructions for Using this Spreadsheet
B4: Table of Contents
B5: Worksheet | C5: Description
B6: Instructions (this worksheet) | C6: Provides instructions to the user on the use of this spreadsheet
B7: Release Point Summary | C7: Summarizes the Release Points and associated parameters used to calculate the amount of annual release from each Release Point
B8: Release Parameters | C8: A list of parameters for the release calculations. Allows an advanced user to select between performing a deterministic or Monte Carlo simulation. Monte Carlo formulas on this worksheet are based on the Monte Carlo simulator @Risk. Certain cells will appear with the "#NAME?" error indicator if a user does not have the program @Risk. The user must not alter parameters in this worksheet. Turn Monte Carlo "Off" using the toggle at the top of the sheet to view deterministic calculations (@Risk not needed for this).
B9: Release Calcs | C9: Performs the release calculations. This worksheet contains @Risk formulas to capture results during a Monte Carlo simulation iteration. Certain cells will appear with the "#NAME?" error indicator if a user does not have the program @Risk. The user must not alter this worksheet.
B10: Release Results | C10: Provides the release results for the baseline scenario from the Monte Carlo simulation. The user must not alter this worksheet.
B11: Static Release Results | C11: Fixed number of sites, PV=25,000 lbs Provides static release results from running the simulation with the specified parameters for the given scenario. @Risk not needed to view.
B14: General Notes/Assumptions
B15: General 1,2-Dichloroethane (1,2-DCA) Info: - Total PV = 30,000,000,000 - <40,000,000,000 lb (each year from 2016-2019) (Manufactured domestically) - Number of sites that repackage 1,2-dichloroethane are unknown; assume 1,2-dichloroethane only has one import site based on 2020 CDR (only one manufacturing site). - PV for Repackaging is unknown; assumed PV of 2,500 to 25,000 lb/site based on CDR reporting threshold of 25,000 lb/yr - # of days calculated to be: 119 days (50th percentile) to 24 days (95th percentile) - 1,2-Dichloroethane is a volatile liquid, VP = 78.9 torr; MW = 98.96 g/mol; assume 1,2-dichloroethane imported in pure liquid form - No dust or solid releases for 1,2-dichloroethane are expected since it is assumed to be managed as a liquid.
B16: Applied ESD on Transport and Storage of Chemicals to address importing pure 1,2-dichloroethane in containers.
B17: Potential for 1,2-dichloroethane to be imported and stored in drums, which would only constitute repackaging into smaller containers; conservative estimate that 1,2-dichloroethane imported in larger quantity and transferred to drums first.
B18: Assume one imported container unloaded per day for repackaging, so number of containers unloaded per year is equal to number of release days per year. Note that the annual production volume per site that is selected for the simulation should not exceed 35,000 kg/site-yr, or the number of release days will begin to approach 365 days/year.

Sheet Release Summary
A1: Release Summary - 50th and 95th Percentile estimates
A3: 50th Percentile
A4: Release Source | B4: Media of Release | C4: Daily Release (kg/site-day) | D4: Days per Year | E4: Annual Release (kg/site-yr) | F4: Release Duration (hr/day) | G4: Release Pattern | H4: Daily Release Estimate by Media (kg/site-day) | N4: Annual Release Estimate by Media (kg/site-yr)
H5: Water (Direct) | I5: Water (Indirect) | J5: Hazardous Waste Incineration | K5: Hazardous Waste Landfill | L5: Stack Air | M5: Fugitive Air | N5: Water (Direct) | O5: Water (Indirect) | P5: Hazardous Waste Incineration | Q5: Hazardous Waste Landfill | R5: Stack Air | S5: Fugitive Air
A6: 1. Emptying (drums) | B6: Fugitive or Stack Air | C6: =INDEX('Static Release Results'!$B$43:$I$49,MATCH(A$3,'Static Release Results'!$A$43:$A$49, 0), MATCH($A6, 'Static Release Results'!$B$30:$F$30, 0)) -> 0.07068925396 | D6: ='Static Release Results'!$F$11 -> 119 | E6: =INDEX('Static Release Results'!$B$34:$I$40,MATCH(A$3,'Static Release Results'!$A$43:$A$49, 0), MATCH($A6, 'Static Release Results'!$B$30:$F$30, 0)) -> 2.985899815 | F6: mean: 1.12 range: 0.597 to 2.97 | G6: unknown - see operating days | L6: =C6 -> 0.07068925396 | M6: =C6 -> 0.07068925396 | R6: =E6 -> 2.985899815 | S6: =E6 -> 2.985899815
A7: 2. Storage | B7: N/A | C7: n/a | E7: n/a | F7: N/A | G7: unknown - see operating days
A8: 3. Filling (small containers) | B8: Fugitive or Stack Air | C8: =INDEX('Static Release Results'!$B$43:$I$49,MATCH(A$3,'Static Release Results'!$A$43:$A$49, 0), MATCH($A8, 'Static Release Results'!$B$30:$F$30, 0)) -> 0.01172929889 | E8: =INDEX('Static Release Results'!$B$34:$I$40,MATCH(A$3,'Static Release Results'!$A$43:$A$49, 0), MATCH($A8, 'Static Release Results'!$B$30:$F$30, 0)) -> 0.5019834774 | F8: mean: 2.25 range: 0.994 to 3.97 | G8: unknown - see operating days | L8: =C8 -> 0.01172929889 | M8: =C8 -> 0.01172929889 | R8: =E8 -> 0.5019834774 | S8: =E8 -> 0.5019834774
A9: 4. Open Surface Losses to Air During Container Cleaning | B9: Fugitive or Stack Air | C9: =INDEX('Static Release Results'!$B$43:$I$49,MATCH(A$3,'Static Release Results'!$A$43:$A$49, 0), MATCH($A9, 'Static Release Results'!$B$30:$F$30, 0)) -> 0.0009055680933 | E9: =INDEX('Static Release Results'!$B$34:$I$40,MATCH(A$3,'Static Release Results'!$A$43:$A$49, 0), MATCH($A9, 'Static Release Results'!$B$30:$F$30, 0)) -> 0.03823254255 | F9: mean: 1.12 range: 0.597 to 2.97 | G9: unknown - see operating days | L9: =C9 -> 0.0009055680933 | M9: =C9 -> 0.0009055680933 | R9: 0.03823254255 | S9: 0.03823254255
A10: 5. Container Cleaning (drums) | B10: Hazardous Waste Landfill or Hazardous Waste Incineration* | C10: =INDEX('Static Release Results'!$B$43:$I$49,MATCH(A$3,'Static Release Results'!$A$43:$A$49, 0), MATCH($A10, 'Static Release Results'!$B$30:$F$30, 0)) -> 6.447583746 | E10: =INDEX('Static Release Results'!$B$34:$I$40,MATCH(A$3,'Static Release Results'!$A$43:$A$49, 0), MATCH($A10, 'Static Release Results'!$B$30:$F$30, 0)) -> 274.5494389 | F10: N/A | G10: unknown - see operating days | J10: =C10 -> 6.447583746 | K10: =C10 -> 6.447583746 | P10: =E10 -> 274.5494389 | Q10: =E10 -> 274.5494389
A11: * Note that incineration release estimates represent the amount of chemical sent for incineration and do not account for destruction efficiency. Water releases are not expected as 1,1-DCA is classified as hazardous by RCRA; according to the GS hazardous wastes are likely sent to hazardous landfill or incineration - water releases are not expected. | G11: Total Releases by Media: | J11: =SUM(J6:J10) -> 6.447583746 | K11: =SUM(K6:K10) -> 6.447583746 | L11: =SUM(L6:L10) -> 0.08332412095 | M11: =SUM(M6:M10) -> 0.08332412095 | P11: =SUM(P6:P10) -> 274.5494389 | Q11: =SUM(Q6:Q10) -> 274.5494389 | R11: =SUM(R6:R10) -> 3.526115835 | S11: =SUM(S6:S10) -> 3.526115835
A14: 95th Percentile
A15: Release Source | B15: Media of Release | C15: Daily Release (kg/site-day) | D15: Days per Year | E15: Annual Release (kg/site-yr) | F15: Release Duration (hr/day) | G15: Release Pattern | H15: Daily Release Estimate by Media (kg/site-day) | N15: Annual Release Estimate by Media (kg/site-yr)
H16: Water (Direct) | I16: Water (Indirect) | J16: Hazardous Waste Incineration | K16: Hazardous Waste Landfill | L16: Stack Air | M16: Fugitive Air | N16: Water (Direct) | O16: Water (Indirect) | P16: Hazardous Waste Incineration | Q16: Hazardous Waste Landfill | R16: Stack Air | S16: Fugitive Air
A17: 1. Emptying (drums) | B17: Fugitive or Stack Air | C17: =INDEX('Static Release Results'!$B$43:$I$49,MATCH(A$14,'Static Release Results'!$A$43:$A$49, 0), MATCH($A17, 'Static Release Results'!$B$30:$F$30, 0)) -> 0.1334608867 | D17: ='Static Release Results'!$F$12 -> 24 | E17: =INDEX('Static Release Results'!$B$34:$I$40,MATCH(A$14,'Static Release Results'!$A$43:$A$49, 0), MATCH($A17, 'Static Release Results'!$B$30:$F$30, 0)) -> 4.746206611 | F17: mean: 1.12 range: 0.597 to 2.97 | G17: unknown - see operating days | L17: =C17 -> 0.1334608867 | M17: =C17 -> 0.1334608867 | R17: =E17 -> 4.746206611 | S17: =E17 -> 4.746206611
A18: 2. Storage | B18: N/A | C18: n/a | E18: n/a | F18: N/A | G18: unknown - see operating days
A19: 3. Filling (small containers) | B19: Fugitive or Stack Air | C19: =INDEX('Static Release Results'!$B$43:$I$49,MATCH(A$14,'Static Release Results'!$A$43:$A$49, 0), MATCH($A19, 'Static Release Results'!$B$30:$F$30, 0)) -> 0.02477400591 | E19: =INDEX('Static Release Results'!$B$34:$I$40,MATCH(A$14,'Static Release Results'!$A$43:$A$49, 0), MATCH($A19, 'Static Release Results'!$B$30:$F$30, 0)) -> 1.25071038 | F19: mean: 2.25 range: 0.994 to 3.97 | G19: unknown - see operating days | L19: =C19 -> 0.02477400591 | M19: =C19 -> 0.02477400591 | R19: =E19 -> 1.25071038 | S19: =E19 -> 1.25071038
A20: 4. Open Surface Losses to Air During Container Cleaning | B20: Fugitive or Stack Air | C20: =INDEX('Static Release Results'!$B$43:$I$49,MATCH(A$14,'Static Release Results'!$A$43:$A$49, 0), MATCH($A20, 'Static Release Results'!$B$30:$F$30, 0)) -> 0.001507727688 | E20: =INDEX('Static Release Results'!$B$34:$I$40,MATCH(A$14,'Static Release Results'!$A$43:$A$49, 0), MATCH($A20, 'Static Release Results'!$B$30:$F$30, 0)) -> 0.08107524543 | F20: mean: 1.12 range: 0.597 to 2.97 | G20: unknown - see operating days | L20: =C20 -> 0.001507727688 | M20: =C20 -> 0.001507727688 | R20: 0.08107524543 | S20: 0.08107524543
A21: 5. Container Cleaning (drums) | B21: Hazardous Waste Landfill or Hazardous Waste Incineration* | C21: =INDEX('Static Release Results'!$B$43:$I$49,MATCH(A$14,'Static Release Results'!$A$43:$A$49, 0), MATCH($A21, 'Static Release Results'!$B$30:$F$30, 0)) -> 10.0548975 | E21: =INDEX('Static Release Results'!$B$34:$I$40,MATCH(A$14,'Static Release Results'!$A$43:$A$49, 0), MATCH($A21, 'Static Release Results'!$B$30:$F$30, 0)) -> 319.7497333 | F21: N/A | G21: unknown - see operating days | J21: =C21 -> 10.0548975 | K21: =C21 -> 10.0548975 | P21: =E21 -> 319.7497333 | Q21: =E21 -> 319.7497333
A22: * Note that incineration release estimates represent the amount of chemical sent for incineration and do not account for destruction efficiency. Water releases are not expected as 1,1-DCA is classified as hazardous by RCRA; according to the GS hazardous wastes are likely sent to hazardous landfill or incineration - water releases are not expected. | G22: Total Releases by Media: | J22: =SUM(J17:J21) -> 10.0548975 | K22: =SUM(K17:K21) -> 10.0548975 | L22: =SUM(L17:L21) -> 0.1597426203 | M22: =SUM(M17:M21) -> 0.1597426203 | P22: =SUM(P17:P21) -> 319.7497333 | Q22: =SUM(Q17:Q21) -> 319.7497333 | R22: =SUM(R17:R21) -> 6.077992236 | S22: =SUM(S17:S21) -> 6.077992236

Sheet Release Point Summary
A1: Parameter Definition | D1: Release Points (from ESD/GS) | Q1: General Parameters
A2: Possible Parameters | B2: Variable | D2: Release Point | E2: 1. Emptying (drums) | G2: 2. Storage | I2: 3. Filling (small containers) | K2: 4. Open Surface Losses to Air During Container Cleaning | M2: 5. Container Cleaning (drums) | Q2: Number of Sites | R2: Ns
A3: Saturation Factor Unloading | B3: Fsaturation_unloading | D3: Expected/Conservative Release Media | E3: fugitive air or stack air | G3: Not expected to lead to significant losses to the environment | I3: fugitive air or stack air | K3: fugitive air or stack air | M3: landfill or incineration | Q3: Production Volume | R3: PV
A4: 1,2-DCA Molecular Weight | B4: MW | D4: Input Parameters: | E4: Saturation Factor Unloading | F4: Fsaturation_unloading | G4: - | H4: - | I4: Saturation Factor Loading | J4: Fsaturation_loading | K4: 1,2-DCA Molecular Weight | L4: MW | M4: Container Loss Fraction | N4: Floss_cont
A5: Import Container Volume | B5: Vimport_cont | E5: 1,2-DCA Molecular Weight | F5: MW | I5: 1,2-DCA Molecular Weight | J5: MW | K5: 1,2-DCA Mass Fraction/VP Correction Factor | L5: F11DCA | M5: Production Volume | N5: PV
A6: Fill Rate of Drum | B6: RATEfill_drum | E6: Import Container Volume | F6: Vimport_cont | I6: Small Container Volume | J6: Vfill_cont | K6: 1,2-DCA Vapor Pressure | L6: VP
A7: 1,1-DCA Vapor Pressure | B7: VP | E7: Fill Rate of Drum | F7: RATEfill_drum | I7: Fill Rate of Small Container | J7: RATEfill_smallcont | K7: Air Speed | L7: RATEair_speed
A8: Gas Constant | B8: R | E8: 1,2-DCA Vapor Pressure | F8: VP | I8: 1,2-DCA Vapor Pressure | J8: VP | K8: Diameter of Opening for Container Cleaning | L8: Dopening_cont-cleaning
A9: Temperature | B9: T | E9: Gas Constant | F9: R | I9: Gas Constant | J9: R | K9: Temperature | L9: T
A10: Production Volume | B10: PV | E10: Temperature | F10: T | I10: Temperature | J10: T | K10: Pressure | L10: P
A11: 1,2-DCA Density | B11: r | E11: Production Volume | F11: PV | I11: Production Volume | J11: PV | K11: Fill Rate of Drum | L11: RATEfill_drum
A12: Saturation Factor Loading | B12: Fsaturation_loading | E12: 1,2-DCA Density | F12: r | I12: 1,2-DCA Density | J12: r | K12: Import Container Volume | L12: Vimport_cont
A13: Small Container Volume | B13: Vfill_cont | K13: Production Volume | L13: PV
A14: Fill Rate of Small Container | B14: RATEfill_smallcont | K14: 1,2-DCA Density | L14: r
A15: 1,2-DCA Mass Fraction/VP Correction Factor | B15: F12-DCA
A16: Air Speed | B16: RATEair_speed
A17: Diameter of Opening for Container Cleaning | B17: Dopening_cont-cleaning
A18: Pressure | B18: P
A19: Container Loss Fraction | B19: Floss_cont
A20: Number of Sites | B20: Ns

Sheet Release Parameters
B2: Turn Monte Carlo On or Off | C2: On
B4: Input Parameter | C4: Symbol | D4: Unit | E4: Deterministic Values | G4: Uncertainty Analysis Distribution Parameters | J4: Distribution Type | L4: Selected Value (Deterministic or @Risk Formula) | M4: Notes/Comments
E5: Value | F5: Basis | G5: Lower Bound | H5: Upper Bound | I5: Mode | K5: @Risk Formulas | P5: On/Off Drop Down
B6: Container Loss Fraction | C6: Floss_cont | D6: kg/kg | E6: 0.025 | F6: Typical | G6: 0.017 | H6: 0.03 | I6: 0.025 | J6: Triangular | K6: =_xll.RiskTriang(G6,I6,H6,_xll.RiskStatic(E6)) ->  | L6: =IF($C$2=$P$6, K6, E6) ->  | M6: Loss fractions for container residual are consistent with EPA/OPPT Drum residual Model using 0.03 loss fraction as high-end and 0.025 as central tendency. Minimum of 0.017 is per review of data used to develop drum model and preliminary EPA guidance on 5/25/2022. | P6: On
B7: Saturation Factor Unloading | C7: Fsaturation_unloading | D7: kg/kg | E7: 0.5 | F7: Typical | G7: 0.5 | H7: 1.45 | I7: 0.5 | J7: Triangular | K7: =_xll.RiskTriang(G7,I7,H7,_xll.RiskStatic(E7)) ->  | M7: AP-42 provided values | P7: Off
B8: Saturation Factor Loading | C8: Fsaturation_loading | D8: kg/kg | E8: 0.5 | F8: Typical | G8: 0.5 | H8: 1.45 | I8: 0.5 | J8: Triangular | K8: =_xll.RiskTriang(G8,I8,H8,_xll.RiskStatic(E8)) ->  | M8: AP-42 provided values
B9: Import Container Volume | C9: Vimport_cont | D9: gal/container | E9: 55 | F9: Typical | G9: 20 | H9: 100 | I9: 55 | J9: Triangular | K9: =_xll.RiskTriang(G9,I9,H9,_xll.RiskStatic(E9)) ->  | L9: =IF($C$2=$P$6, K9, E9) ->  | M9: Standard EPA values for Vapor Generation Rate/Volatile Air Release Models given as 20 to <100 gallons for drum volume, with 55 gallons as default value. Typically use drums for given throughput as suggested in ESD on Transport and Storage (HERO ID 6393282).
B10: Small Container Volume | C10: Vfill_cont | D10: gal/container | E10: 5 | F10: Typical | G10: 5 | H10: 20 | I10: 5 | J10: Triangular | K10: =_xll.RiskTriang(G10,I10,H10,_xll.RiskStatic(E10)) ->  | M10: Standard EPA values for Vapor Generation Rate/Volatile Air Release Models given as 5 to <20 gallons for small container volume, with 5 gallons as default value.
B11: Air Speed | C11: RATEair_speed | D11: cm/s | E11: 10 | F11: 50th percentile | G11: 1.3 | H11: 202.2 | I11: — | J11: Lognormal | K11: =_xll.RiskLognorm(22.414,19.958,_xll.RiskTruncate(G11,H11),_xll.RiskName(B11),_xll.RiskStatic(E11)) ->  | L11: =IF($C$2=$P$6, K11, E11) ->  | M11: Distribution using EPA's air speed model for industrial uses; converted to ft/min for model use. For industrial facilities, it’s a lognormal distribution with mean of 22.414 cm/s, standard deviation of 19.958 cm/s, max truncated at 202.2 cm/s.
D12: ft/min | E12: =E11*ft_per_cm*60 -> 19.6848 | F12: 50th percentile | G12: =G11*ft_per_cm*60 -> 2.559024 | H12: =H11*ft_per_cm*60 -> 398.026656 | I12: — | J12: Lognormal | K12: =(K11*ft_per_cm*60) ->  | L12: =IF($C$2=$P$6, K12, E12) -> 
B14: Constants and Unit Conversions | C14: Symbol | D14: Value | E14: Unit | F14: Notes/Comments
B15: Number of Sites | C15: Ns | D15: 1 | E15: sites | F15: what-if scenario
B16: Production Volume Assessed | C16: PV_lbs | D16: 25000 | E16: lbs/yr | F16: what-if scenario
B17: Production Volume | C17: PV | D17: =D16/lbs_per_kg -> 11339.82274 | E17: kg/yr | F17: used for calcs
B18: 1,2-DCA Import Mass Fraction | C18: F12DCA | D18: 1 | E18: kg/kg | F18: also use for vapor pressure correction factor
B19: 1,2-DCA Molecular Weight | C19: MW | D19: 98.96 | E19: g/mol | F19: Final Scope (mmHg)
B20: Fill Rate of Drum | C20: RATEfill_drum | D20: 20 | E20: containers/hr
B21: Fill Rate of Small Container | C21: RATEfill_smallcont | D21: 60 | E21: containers/hr
B22: Diameter of Opening for Container Cleaning | C22: Dopening_cont-cleaning | D22: 5.08 | E22: cm
B23: 1,2-DCA Vapor Pressure | C23: VP | D23: 78.9 | E23: Torr | F23: Final Scope (mmHg)
B24: 1,2-DCA Density | C24: rho12DCA | D24: 1256.9 | E24: kg/m^3 | F24: Final Scope (mmHg)
B25: Gas Constant | C25: R | D25: 62.36367 | E25: L*torr/mol-K
B26: Temperature | C26: T | D26: 298 | E26: K
B27: Pressure | C27: P | D27: 760 | E27: torr
B28: lb/kg | C28: — | D28: 2.20462 | E28: lb/kg
B29: ft/cm | C29: — | D29: 0.032808 | E29: ft/cm
B30: m^3/gal | C30: — | D30: 0.00378541 | E30: m^3/gal
B31: L/gal | C31: — | D31: 3.7854 | E31: L/gal

Sheet Release Calcs
B2: Calculation of Baseline Releases
B4: Parameter Name | C4: Symbol | D4: Equation | E4: Stochastic Value | F4: Unit
B5: Facility Production Rate | C5: PVsite | D5: PV/Ns | E5: =PV/Ns -> 11339.82274 | F5: kg/site-year
B6: Release Days per site/Number of Import Containers | C6: RD | D6: (PVsite/(rho11DCA*0.00378541 m3/gal*Vimport_cont) | E6: =_xll.RiskOutput("Release Days")+ROUNDUP((PV/Ns)/(r_12DCA*m3_per_gal*V_importcont),0) ->  | F6: days
B7: Facility Daily Production Rate | C7: Qchem_site_day | D7: PV/(Nsites * RD) | E7: =PV/(2*RD) ->  | F7: kg/site-day
B8: Facility Annual Production Rate | C8: Qchem_site_yr | D8: PV/(Nsites) | E8: =PV/2 -> 5669.911368 | F8: kg/site-day
B9: Mass of Chemical in Unloaded Container | C9: Qproc_container_unload | D9: Vimport_container * RHO12DCA * m^3_per_gal | E9: =V_importcont*r_12DCA*m3_per_gal ->  | F9: kg chemical/unload container
B10: Mass of Chemical in Filled Container | C10: Qproc_container_fill | D10: Vsmall_container * RHO12DCA * m^3_per_gal | E10: =V_smallcont*r_12DCA*m3_per_gal ->  | F10: kg chemical/fill container
B11: Number of Transport Containers Unloaded Daily per Site | C11: Ncont_unload_day | D11: (Qchem_site_day * RD)/(Fchem * Qproc_cont_unload) | E11: =(Q_chem_site_day*RD)/(F_12DCA*Q_proc_container_unload) ->  | F11: containers unloaded/day
B12: Number of Transport Containers Unloaded Annually per Site | C12: Ncont_unload_yr | D12: (Qchem_site_yr * RD)/(Fchem * Qproc_cont_unload) | E12: =(Q_chem_site_yr*RD)/(F_12DCA*Q_proc_container_unload) ->  | F12: containers unloaded/day
B13: Number of Transport Containers Unloaded Daily per Site | C13: Ncont_load_day | D13: (Qchem_site_day * RD)/(Fchem * Qproc_cont_fill) | E13: =(Q_chem_site_day*RD)/(F_12DCA*Q_proc_container_load) ->  | F13: containers loaded/day
B14: Number of Transport Containers Unloaded Annually per Site | C14: Ncont_load_yr | D14: (Qchem_site_yr * RD)/(Fchem * Qproc_cont_fill) | E14: =(Q_chem_site_yr*RD)/(F_12DCA*Q_proc_container_load) ->  | F14: containers loaded/day
B15: Daily Hours Spent Unloading Containers | C15: OHunload_day | D15: Ncont_unload_day/RATEfill_drum | E15: =N_cont_unload_day/Rate_filldrum ->  | F15: hours/day
B16: Daily Hours Spent Filling Containers | C16: OHload_day | D16: Ncont_fill_day/RATEfill_smallcont | E16: =N_cont_load_day/Rate_fillsmallcont ->  | F16: hours/day
B17: Annual Hours Spent Unloading Containers | C17: OHunload_yr | D17: Ncont_unload_yr/RATEfill_drum | E17: =N_cont_unload_yr/Rate_filldrum ->  | F17: hours/yr
B18: Annual Hours Spent Filling Containers | C18: OHload_yr | D18: Ncont_fill_yr/RATEfill_smallcont | E18: =N_cont_load_yr/Rate_fillsmallcont ->  | F18: hours/yr
B19: Release Point 1 annual release per site (Emptying drums) | C19: Release_YearRP1 | D19: (RD/RATEfill_drum)*(3600 s/hr)*(0.001 kg/g)*[Fsaturation_unloading*MW11DCA*(Vimport_cont*(3.7854 L/gal))*(RATEfill_drum/(3600 s/hr))*F11DCA*(VP)]/(R*T) | E19: =_xll.RiskOutput(,"Annual Releases",1)+(RD/Rate_filldrum)*3600*0.001*((Fsat_unload*MW_12DCA*(V_importcont*L_per_gal)*(Rate_filldrum/3600)*F_12DCA*VP_12DCA)/(R_Ltorr_molK*Temp)) ->  | F19: kg/site-yr
B20: Release Point 3 annual release per site (Filling small containers) | C20: Release_YearRP3 | D20: (RD/RATEfill_smallcont)*(3600 s/hr)*(0.001 kg/g)*[Fsaturation_loading*MW11DCA*(Vfill_cont*(3.7854 L/gal))*(RATEfill_smallcont/(3600 s/hr))*F11DCA*(VP)]/(R*T) | E20: =_xll.RiskOutput(,"Annual Releases",2)+(RD/Rate_fillsmallcont)*3600*0.001*((Fsat_unload*MW_12DCA*(V_smallcont*L_per_gal)*(Rate_fillsmallcont/3600)*F_12DCA*VP_12DCA)/(R_Ltorr_molK*Temp)) ->  | F20: kg/site-yr
B21: Release Point 4 annual release per site (Open surface losses during container cleaning) | C21: Release_YearRP4 | D21: Penetration Model (if air speed <= 100 ft/min): (RD/RATEfill_drum*(3600 s/hr))*(0.001 kg/g)*[[(8.24E-8*(MW11DCA^0.835)*F11DCA*VP*((1/29+1/MW11DCA)^0.25)*(RATEair_speed^0.5)*(0.25*pi*Dopening_cont-cleaning^2)]/(T^0.05*Dopening_cont-cleaning^0.5*P^0.5)] Mass Transfer Coefficient Model (if air speed >100 ft/min): (RD/RATEfill_drum*(3600 s/hr))*(0.001 kg/g)*[[(1.93E-7*(MW11DCA^0.78)*F11DCA*VP*((1/29+1/MW11DCA)^0.33)*(RATEair_speed^0.78)*(0.25*pi*Dopening_cont-cleaning^2)]/(T^0.4*Dopening_cont-cleaning^0.11*(T^0.5-5.87)^(2/3)] | E21: =_xll.RiskOutput(,"Annual Releases",3)+(RD/Rate_filldrum)*3600*0.001*IF(Air_speed>100,((1.93*10^-7)*(MW_12DCA^0.78)*F_12DCA*VP_12DCA*(((1/29)+(1/MW_12DCA))^0.33)*(Air_speed^0.78)*(0.25*PI()*(D_contcleaning^2)))/((Temp^0.4)*(D_contcleaning^0.11)*(((Temp^0.5)-5.87)^(2/3))),((8.24*10^-8)*(MW_12DCA^0.835)*F_12DCA*VP_12DCA*(((1/29)+(1/MW_12DCA))^0.25)*(Air_speed^0.5)*(0.25*PI()*(D_contcleaning^2)))/((Temp^0.05)*(D_contcleaning^0.5)*((Pressure_Torr/760)^0.5))) ->  | F21: kg/site-yr
B22: Release Point 5 annual release per site (Drum cleaning) | C22: Release_YearRP5 | D22: PVsite*Floss_cont | E22: =_xll.RiskOutput(,"Annual Releases",4)+(PV/Ns)*F_contloss ->  | F22: kg/site-yr
B23: Release Point 1 site release per release day (Emptying drums) | C23: Release_per DayRP1 | D23: Release_YearRP1/RD | E23: =_xll.RiskOutput(,"Releases per Release Day",1)+RY_RP1/RD ->  | F23: kg/site-day
B24: Release Point 3 site release per release day (Filling small containers) | C24: Release_per DayRP3 | D24: Release_YearRP3/RD | E24: =_xll.RiskOutput(,"Releases per Release Day",2)+RY_RP3/RD ->  | F24: kg/site-day
B25: Release Point 4 site release per release day (Open surface losses during container cleaning) | C25: Release_per DayRP4 | D25: Release_YearRP4/RD | E25: =_xll.RiskOutput(,"Releases per Release Day",3)+RY_RP4/RD ->  | F25: kg/site-day
B26: Release Point 5 site release per release day (Drum cleaning) | C26: Release_per DayRP5 | D26: Release_YearRP5/RD | E26: =_xll.RiskOutput(,"Releases per Release Day",4)+RY_RP5/RD ->  | F26: kg/site-day
B27: Total Annual Release to fugitive or stack air | C27: Release_totalair | D27: Release_YearRP1 + Release_YearRP3 + Release_YearRP4 | E27: =_xll.RiskOutput("Total Annual Air Releases")+RY_RP1+RY_RP3+RY_RP4 ->  | F27: kg/site-yr
B28: Total Annual Release to landfill or incineration | C28: Release_total lan_inc | D28: Release_YearRP5 | E28: =_xll.RiskOutput("Total Annual Water Releases")+RY_RP5 ->  | F28: kg/site-yr
B29: Total Daily Release to fugitive or stack air | C29: Release_airday | D29: Release_totalair/RD | E29: =_xll.RiskOutput()+Total_air/RD ->  | F29: kg/site-day
B30: Total Daily Release to landfill or incineration | C30: Release_lan_inc_day | D30: Release_totalwater/RD | E30: =_xll.RiskOutput()+Total_lan_inc/RD ->  | F30: kg/site-day

Sheet Release Results
A1: What-If Scenario
A2: Production Volume Assessed (kg/yr) | B2: =ROUND(PV,0) -> 11340
A3: Number of Sites | B3: =Ns -> 1
A5: Monte Carlo Simulation Parameters
A6: Number of Iterations | B6: 100000
A7: Sampling Method | B7: Latin Hypercube
B9: Release Media
A10: Total Annual Release (kg/site-yr) | B10: fugitive air or stack air | C10: wastewater to onsite treatment or discharge to POTW (with or without pretreatment) | E10: Release Days (days/yr) | F10: RD
A11: Maximum | B11: =_xll.RiskMax(Total_air) ->  | C11: =_xll.RiskMax(Total_lan_inc) ->  | E11: Maximum | F11: =_xll.RiskMax(RD) -> 
A12: 99th Percentile | B12: =_xll.RiskPercentile(Total_air,0.99) ->  | C12: =_xll.RiskPercentile(Total_lan_inc,0.99) ->  | E12: Minimum | F12: =_xll.RiskMin(RD) -> 
A13: 95th Percentile | B13: =_xll.RiskPercentile(Total_air,0.95) ->  | C13: =_xll.RiskPercentile(Total_lan_inc,0.95) -> 
A14: 50th Percentile | B14: =_xll.RiskPercentile(Total_air,0.5) ->  | C14: =_xll.RiskPercentile(Total_lan_inc,0.5) -> 
A15: 5th Percentile | B15: =_xll.RiskPercentile(Total_air,0.05) ->  | C15: =_xll.RiskPercentile(Total_lan_inc,0.05) -> 
A16: Minimum | B16: =_xll.RiskMin(Total_air) ->  | C16: =_xll.RiskMin(Total_lan_inc) -> 
A17: Mean | B17: =_xll.RiskMean(Total_air) ->  | C17: =_xll.RiskMean(Total_lan_inc) -> 
A19: Total Release per-Day (kg/site-day)
A20: Maximum | B20: =_xll.RiskMax(Daily_air) ->  | C20: =_xll.RiskMax(Daily_lan_inc) -> 
A21: 99th Percentile | B21: =_xll.RiskPercentile(Daily_air,0.99) ->  | C21: =_xll.RiskPercentile(Daily_lan_inc,0.99) -> 
A22: 95th Percentile | B22: =_xll.RiskPercentile(Daily_air,0.95) ->  | C22: =_xll.RiskPercentile(Daily_lan_inc,0.95) -> 
A23: 50th Percentile | B23: =_xll.RiskPercentile(Daily_air,0.5) ->  | C23: =_xll.RiskPercentile(Daily_lan_inc,0.5) -> 
A24: 5th Percentile | B24: =_xll.RiskPercentile(Daily_air,0.05) ->  | C24: =_xll.RiskPercentile(Daily_lan_inc,0.05) -> 
A25: Minimum | B25: =_xll.RiskMin(Daily_air) ->  | C25: =_xll.RiskMin(Daily_lan_inc) -> 
A26: Mean | B26: =_xll.RiskMean(Daily_air) ->  | C26: =_xll.RiskMean(Daily_lan_inc) -> 
B29: Release Point
A30: Release Point | B30: 1. Emptying (drums) | C30: 2. Storage | D30: 3. Filling (small containers) | E30: 4. Open Surface Losses to Air During Container Cleaning | F30: 5. Container Cleaning (drums)
A31: Expected/Conservative Release Media | B31: fugitive air or stack air | C31: Not expected to lead to significant losses to the environment | D31: fugitive air or stack air | E31: fugitive air or stack air | F31: landfill or incineration
A33: Release (kg/site-yr) | B33: Release_YearRP1 | C33: - | D33: Release_YearRP3 | E33: Release_YearRP4 | F33: Release_YearRP5
A34: Maximum | B34: =_xll.RiskMax(RY_RP1) ->  | C34: - | D34: =_xll.RiskMax(RY_RP3) ->  | E34: =_xll.RiskMax(RY_RP4) ->  | F34: =_xll.RiskMax(RY_RP5) -> 
A35: 99th Percentile | B35: =_xll.RiskPercentile(RY_RP1,0.99) ->  | C35: - | D35: =_xll.RiskPercentile(RY_RP3,0.99) ->  | E35: =_xll.RiskPercentile(RY_RP4,0.99) ->  | F35: =_xll.RiskPercentile(RY_RP5,0.99) -> 
A36: 95th Percentile | B36: =_xll.RiskPercentile(RY_RP1,0.95) ->  | C36: - | D36: =_xll.RiskPercentile(RY_RP3,0.95) ->  | E36: =_xll.RiskPercentile(RY_RP4,0.95) ->  | F36: =_xll.RiskPercentile(RY_RP5,0.95) -> 
A37: 50th Percentile | B37: =_xll.RiskPercentile(RY_RP1,0.5) ->  | C37: - | D37: =_xll.RiskPercentile(RY_RP3,0.5) ->  | E37: =_xll.RiskPercentile(RY_RP4,0.5) ->  | F37: =_xll.RiskPercentile(RY_RP5,0.5) -> 
A38: 5th Percentile | B38: =_xll.RiskPercentile(RY_RP1,0.05) ->  | C38: - | D38: =_xll.RiskPercentile(RY_RP3,0.05) ->  | E38: =_xll.RiskPercentile(RY_RP4,0.05) ->  | F38: =_xll.RiskPercentile(RY_RP5,0.05) -> 
A39: Minimum | B39: =_xll.RiskMin(RY_RP1) ->  | C39: - | D39: =_xll.RiskMin(RY_RP3) ->  | E39: =_xll.RiskMin(RY_RP4) ->  | F39: =_xll.RiskMin(RY_RP5) -> 
A40: Mean | B40: =_xll.RiskMean(RY_RP1) ->  | C40: - | D40: =_xll.RiskMean(RY_RP3) ->  | E40: =_xll.RiskMean(RY_RP4) ->  | F40: =_xll.RiskMean(RY_RP5) -> 
A42: Release (kg/site-day) | B42: Release_per DayRP1 | C42: - | D42: Release_per DayRP3 | E42: Release_per DayRP4 | F42: Release_per DayRP5
A43: Maximum | B43: =_xll.RiskMax(RD_RP1) ->  | C43: - | D43: =_xll.RiskMax(RD_RP3) ->  | E43: =_xll.RiskMax(RD_RP4) ->  | F43: =_xll.RiskMax(RD_RP5) -> 
A44: 99th Percentile | B44: =_xll.RiskPercentile(RD_RP1,0.99) ->  | C44: - | D44: =_xll.RiskPercentile(RD_RP3,0.99) ->  | E44: =_xll.RiskPercentile(RD_RP4,0.99) ->  | F44: =_xll.RiskPercentile(RD_RP5,0.99) -> 
A45: 95th Percentile | B45: =_xll.RiskPercentile(RD_RP1,0.95) ->  | C45: - | D45: =_xll.RiskPercentile(RD_RP3,0.95) ->  | E45: =_xll.RiskPercentile(RD_RP4,0.95) ->  | F45: =_xll.RiskPercentile(RD_RP5,0.95) -> 
A46: 50th Percentile | B46: =_xll.RiskPercentile(RD_RP1,0.5) ->  | C46: - | D46: =_xll.RiskPercentile(RD_RP3,0.5) ->  | E46: =_xll.RiskPercentile(RD_RP4,0.5) ->  | F46: =_xll.RiskPercentile(RD_RP5,0.5) -> 
A47: 5th Percentile | B47: =_xll.RiskPercentile(RD_RP1,0.05) ->  | C47: - | D47: =_xll.RiskPercentile(RD_RP3,0.05) ->  | E47: =_xll.RiskPercentile(RD_RP4,0.05) ->  | F47: =_xll.RiskPercentile(RD_RP5,0.05) -> 
A48: Minimum | B48: =_xll.RiskMin(RD_RP1) ->  | C48: - | D48: =_xll.RiskMin(RD_RP3) ->  | E48: =_xll.RiskMin(RD_RP4) ->  | F48: =_xll.RiskMin(RD_RP5) -> 
A49: Mean | B49: =_xll.RiskMean(RD_RP1) ->  | C49: - | D49: =_xll.RiskMean(RD_RP3) ->  | E49: =_xll.RiskMean(RD_RP4) ->  | F49: =_xll.RiskMean(RD_RP5) -> 
A51: Daily Release Duration (hours/day) | B51: Release_Duration per Day_RP1 | C51: - | D51: Release_Duration per Day_RP3 | E51: Release_Duration per Day_RP4 | F51: Release_Duration per Day_RP5
A52: Maximum | B52: =_xll.RiskMax(OH_unload_day) ->  | C52: - | D52: =_xll.RiskMax(OH_load_day) ->  | E52: =_xll.RiskMax(OH_unload_day) ->  | F52: -
A53: 99th Percentile | B53: =_xll.RiskPercentile(OH_unload_day,0.99) ->  | C53: - | D53: =_xll.RiskPercentile(OH_load_day,0.99) ->  | E53: =_xll.RiskPercentile(OH_unload_day,0.99) ->  | F53: -
A54: 95th Percentile | B54: =_xll.RiskPercentile(OH_unload_day,0.95) ->  | C54: - | D54: =_xll.RiskPercentile(OH_load_day,0.95) ->  | E54: =_xll.RiskPercentile(OH_unload_day,0.95) ->  | F54: -
A55: 50th Percentile | B55: =_xll.RiskPercentile(OH_unload_day,0.5) ->  | C55: - | D55: =_xll.RiskPercentile(OH_load_day,0.5) ->  | E55: =_xll.RiskPercentile(OH_unload_day,0.5) ->  | F55: -
A56: 5th Percentile | B56: =_xll.RiskPercentile(OH_unload_day,0.05) ->  | C56: - | D56: =_xll.RiskPercentile(OH_load_day,0.05) ->  | E56: =_xll.RiskPercentile(OH_unload_day,0.05) ->  | F56: -
A57: Minimum | B57: =_xll.RiskMin(OH_unload_day) ->  | C57: - | D57: =_xll.RiskMin(OH_load_day) ->  | E57: =_xll.RiskMin(OH_unload_day) ->  | F57: -
A58: Mean | B58: =_xll.RiskMean(OH_unload_day) ->  | C58: - | D58: =_xll.RiskMean(OH_load_day) ->  | E58: =_xll.RiskMean(OH_unload_day) ->  | F58: -
A60: Annual Release Duration (hours/yr) | B60: Release_Duration per Year_RP1 | C60: - | D60: Release_Duration per Year_RP3 | E60: Release_Duration per Year_RP4 | F60: Release_Duration per Year_RP5
A61: Maximum | B61: =_xll.RiskMax(OH_unload_yr) ->  | C61: - | D61: =_xll.RiskMax(OH_load_yr) ->  | E61: =_xll.RiskMax(OH_unload_yr) ->  | F61: -
A62: 99th Percentile | B62: =_xll.RiskPercentile(OH_unload_yr,0.99) ->  | C62: - | D62: =_xll.RiskPercentile(OH_load_yr,0.99) ->  | E62: =_xll.RiskPercentile(OH_unload_yr,0.99) ->  | F62: -
A63: 95th Percentile | B63: =_xll.RiskPercentile(OH_unload_yr,0.95) ->  | C63: - | D63: =_xll.RiskPercentile(OH_load_yr,0.95) ->  | E63: =_xll.RiskPercentile(OH_unload_yr,0.95) ->  | F63: -
A64: 50th Percentile | B64: =_xll.RiskPercentile(OH_unload_yr,0.5) ->  | C64: - | D64: =_xll.RiskPercentile(OH_load_yr,0.5) ->  | E64: =_xll.RiskPercentile(OH_unload_yr,0.5) ->  | F64: -
A65: 5th Percentile | B65: =_xll.RiskPercentile(OH_unload_yr,0.05) ->  | C65: - | D65: =_xll.RiskPercentile(OH_load_yr,0.05) ->  | E65: =_xll.RiskPercentile(OH_unload_yr,0.05) ->  | F65: -
A66: Minimum | B66: =_xll.RiskMin(OH_unload_yr) ->  | C66: - | D66: =_xll.RiskMin(OH_load_yr) ->  | E66: =_xll.RiskMin(OH_unload_yr) ->  | F66: -
A67: Mean | B67: =_xll.RiskMean(OH_unload_yr) ->  | C67: - | D67: =_xll.RiskMean(OH_load_yr) ->  | E67: =_xll.RiskMean(OH_unload_yr) ->  | F67: -

Sheet Static Release Results
A1: What-If Scenario
A2: Production Volume Assessed (kg/yr) | B2: 11340
A3: Number of Sites | B3: 1
A5: Monte Carlo Simulation Parameters
A6: Number of Iterations | B6: 100000
A7: Sampling Method | B7: Latin Hypercube
B9: Release Media
A10: Total Annual Release (kg/site-yr) | B10: fugitive air or stack air | C10: landfill or incineration | E10: Release Days (days/yr) | F10: RD
A11: Maximum | B11: 9.540148119 | C11: 339.9939227 | E11: Maximum | F11: 119
A12: 99th Percentile | B12: 6.494247167 | C12: 331.0489142 | E12: Minimum | F12: 24
A13: 95th Percentile | B13: 5.745710984 | C13: 319.7497333
A14: 50th Percentile | B14: 3.580936283 | C14: 274.5494389
A15: 5th Percentile | B15: 2.371169999 | C15: 218.6355087
A16: Minimum | B16: 2.052030208 | C16: 193.0817628
A17: Mean | B17: 3.763623719 | C17: 272.1557488
A19: Total Release per-Day (kg/site-day)
A20: Maximum | B20: 0.2517964475 | C20: 13.51274435
A21: 99th Percentile | B21: 0.1845847704 | C21: 11.3620055
A22: 95th Percentile | B22: 0.1524805941 | C22: 10.0548975
A23: 50th Percentile | B23: 0.08398624914 | C23: 6.447583746
A24: 5th Percentile | B24: 0.04544851656 | C24: 3.492756351
A25: Minimum | B25: 0.02230630304 | C25: 1.732064336
A26: Mean | B26: 0.08966293736 | C26: 6.574510731
B29: Release Point
A30: Release Point | B30: 1. Emptying (drums) | C30: 2. Storage | D30: 3. Filling (small containers) | E30: 4. Open Surface Losses to Air During Container Cleaning | F30: 5. Container Cleaning (drums)
A31: Expected/Conservative Release Media | B31: fugitive air or stack air | C31: Not expected to lead to significant losses to the environment | D31: fugitive air or stack air | E31: fugitive air or stack air | F31: landfill or incineration
A33: Release (kg/site-yr) | B33: Release_YearRP1 | C33: - | D33: Release_YearRP3 | E33: Release_YearRP4 | F33: Release_YearRP5
A34: Maximum | B34: 5.661000331 | C34: - | D34: 3.923729851 | E34: 0.1981700207 | F34: 339.9939227
A35: 99th Percentile | B35: 5.203608422 | C35: - | D35: 1.800751965 | E35: 0.1095760844 | F35: 331.0489142
A36: 95th Percentile | B36: 4.746206611 | C36: - | D36: 1.25071038 | E36: 0.08107524543 | F36: 319.7497333
A37: 50th Percentile | B37: 2.985899815 | C37: - | D37: 0.5019834774 | E37: 0.03823254255 | F37: 274.5494389
A38: 5th Percentile | B38: 2.010719545 | C38: - | D38: 0.2143793371 | E38: 0.017966657 | F38: 218.6355087
A39: Minimum | B39: 1.896690859 | C39: - | D39: 0.1088725302 | E39: 0.007576572003 | F39: 193.0817628
A40: Mean | B40: 3.1334459 | C40: - | D40: 0.5878421263 | E40: 0.042335693 | F40: 272.1557488
A42: Release (kg/site-day) | B42: Release_per DayRP1 | C42: - | D42: Release_per DayRP3 | E42: Release_per DayRP4 | F42: Release_per DayRP5
A43: Maximum | B43: 0.2252991491 | C43: - | D43: 0.04464963147 | E43: 0.001686410572 | F43: 13.51274435
A44: 99th Percentile | B44: 0.1635486713 | C44: - | D44: 0.03113433416 | E44: 0.001642846892 | F44: 11.3620055
A45: 95th Percentile | B45: 0.1334608867 | C45: - | D45: 0.02477400591 | E45: 0.001507727688 | F45: 10.0548975
A46: 50th Percentile | B46: 0.07068925396 | C46: - | D46: 0.01172929889 | E46: 0.0009055680933 | F46: 6.447583746
A47: 5th Percentile | B47: 0.03529091322 | C47: - | D47: 0.005674010934 | E47: 0.0004788535132 | F47: 3.492756351
A48: Minimum | B48: 0.01683337119 | C48: - | D48: 0.003983104169 | E48: 0.0002698392301 | F48: 1.732064336
A49: Mean | B49: 0.07573593386 | C49: - | D49: 0.01299039754 | E49: 0.0009366059592 | F49: 6.574510731
A51: Daily Release Duration (hours/day) | B51: Release_Duration per Day_RP1 | C51: - | D51: Release_Duration per Day_RP3 | E51: Release_Duration per Day_RP4 | F51: Release_Duration per Day_RP5
A52: Maximum | B52: 2.967944527 | C52: - | D52: 3.972243455 | E52: 2.967944527 | F52: -
A53: 99th Percentile | B53: 2.355874063 | C53: - | D53: 3.913432004 | E53: 2.355874063 | F53: -
A54: 95th Percentile | B54: 1.871775331 | C54: - | D54: 3.691852353 | E54: 1.871775331 | F54: -
A55: 50th Percentile | B55: 1.034921475 | C55: - | D55: 2.1143971 | E55: 1.034921475 | F55: -
A56: 5th Percentile | B56: 0.6881700505 | C56: - | D56: 1.193170422 | E56: 0.6881700505 | F56: -
A57: Minimum | B57: 0.5967347043 | C57: - | D57: 0.9944345798 | E57: 0.5967347043 | F57: -
A58: Mean | B58: 1.117906319 | C58: - | D58: 2.246709446 | E58: 1.117906319 | F58: -
A60: Annual Release Duration (hours/yr) | B60: Release_Duration per Year_RP1 | C60: - | D60: Release_Duration per Year_RP3 | E60: Release_Duration per Year_RP4 | F60: Release_Duration per Year_RP5
A61: Maximum | B61: 353.1853987 | C61: - | D61: 443.3224357 | E61: 353.1853987 | F61: -
A62: 99th Percentile | B62: 223.808036 | C62: - | D62: 269.590425 | E62: 223.808036 | F62: -
A63: 95th Percentile | B63: 140.3831498 | C63: - | D63: 197.0913931 | E63: 140.3831498 | F63: -
A64: 50th Percentile | B64: 43.46670194 | C64: - | D64: 90.76923079 | E64: 43.46670194 | F64: -
A65: 5th Percentile | B65: 19.26876142 | C65: - | D65: 43.5101541 | E65: 19.26876142 | F65: -
A66: Minimum | B66: 14.3216329 | C66: - | D66: 26.12097296 | E66: 14.3216329 | F66: -
A67: Mean | B67: 56.0063116 | C67: - | D67: 101.5744298 | E67: 56.0063116 | F67: -
